[Event "Late-Titled-Tuesday-Blitz-February-27-2024"]
[Site "Chess.com"]
[Date "2024.02.27"]
[Round "1"]
[White "jcmesafischer"]
[Black "Rutricks"]
[Result "0-1"]
[WhiteElo "2382"]
[BlackElo "2678"]
[TimeControl "180+1"]
[EndTime "14:02:08 PST"]
[Termination "Rutricks won by resignation"]

1. e4 {[%clk 0:03:00.9]} 1... g6 {[%clk 0:03:00.9]} 2. d4 {[%clk 0:02:59.3]}
2... Bg7 {[%clk 0:03:01.3]} 3. Be3 {[%clk 0:02:59.3]} 3... c6 {[%clk 0:03:01.4]}
4. Qd2 {[%clk 0:02:59.3]} 4... d5 {[%clk 0:03:02.2]} 5. Nc3 {[%clk 0:02:58.5]}
5... dxe4 {[%clk 0:03:02.6]} 6. Nxe4 {[%clk 0:02:59.3]} 6... Nf6 {[%clk
0:03:03.3]} 7. Nxf6+ {[%clk 0:02:59.3]} 7... exf6 {[%clk 0:03:04.2]} 8. h4
{[%clk 0:02:57.3]} 8... h5 {[%clk 0:03:04.2]} 9. O-O-O {[%clk 0:02:54.5]} 9...
O-O {[%clk 0:03:04.6]} 10. Bh6 {[%clk 0:02:53.4]} 10... Re8 {[%clk 0:03:03.8]}
11. Bxg7 {[%clk 0:02:52.8]} 11... Kxg7 {[%clk 0:03:04.7]} 12. f3 {[%clk
0:02:48.3]} 12... b5 {[%clk 0:03:01.3]} 13. Be2 {[%clk 0:02:40.8]} 13... Qd5
{[%clk 0:02:56.8]} 14. Kb1 {[%clk 0:02:36.8]} 14... Be6 {[%clk 0:02:54.8]} 15.
b3 {[%clk 0:02:26.9]} 15... a5 {[%clk 0:02:54.2]} 16. Nh3 {[%clk 0:02:27.5]}
16... Bxh3 {[%clk 0:02:53.8]} 17. Rxh3 {[%clk 0:02:26.3]} 17... Nd7 {[%clk
0:02:52.2]} 18. g4 {[%clk 0:02:26.1]} 18... a4 {[%clk 0:02:28.6]} 19. gxh5
{[%clk 0:02:21.4]} 19... Qxh5 {[%clk 0:02:28.5]} 20. f4 {[%clk 0:02:20.9]} 20...
Rxe2 {[%clk 0:02:27.3]} 0-1

[Event "Late-Titled-Tuesday-Blitz-February-27-2024"]
[Site "Chess.com"]
[Date "2024.02.27"]
[Round "1"]
[White "SantoBlue"]
[Black "zajka-molotok"]
[Result "1-0"]
[WhiteElo "2976"]
[BlackElo "2506"]
[TimeControl "180+1"]
[EndTime "14:02:24 PST"]
[Termination "SantoBlue won by resignation"]

1. e4 {[%clk 0:03:00.9]} 1... c5 {[%clk 0:02:58.4]} 2. Nf3 {[%clk 0:03:01.1]}
2... Nc6 {[%clk 0:02:58.5]} 3. Bb5 {[%clk 0:03:00.5]} 3... g6 {[%clk 0:02:57.9]}
4. Bxc6 {[%clk 0:02:52.9]} 4... dxc6 {[%clk 0:02:58.8]} 5. d3 {[%clk 0:02:51.4]}
5... Bg7 {[%clk 0:02:58.6]} 6. O-O {[%clk 0:02:51.8]} 6... Nf6 {[%clk
0:02:54.7]} 7. Nc3 {[%clk 0:02:46.3]} 7... O-O {[%clk 0:02:53.5]} 8. Be3 {[%clk
0:02:46.7]} 8... Nd7 {[%clk 0:02:49.5]} 9. Qd2 {[%clk 0:02:45.5]} 9... e5 {[%clk
0:02:47.9]} 10. Bh6 {[%clk 0:02:41.3]} 10... Re8 {[%clk 0:02:36.3]} 11. Bxg7
{[%clk 0:02:40.9]} 11... Kxg7 {[%clk 0:02:37.2]} 12. h3 {[%clk 0:02:41.7]} 12...
Nf8 {[%clk 0:02:33.2]} 13. Nh2 {[%clk 0:02:39.9]} 13... Ne6 {[%clk 0:02:32.4]}
14. Ne2 {[%clk 0:02:39.9]} 14... Nd4 {[%clk 0:02:16.6]} 15. Nxd4 {[%clk
0:02:33]} 15... Qxd4 {[%clk 0:02:12.6]} 16. b3 {[%clk 0:02:32.6]} 16... Be6
{[%clk 0:02:08.6]} 17. Kh1 {[%clk 0:02:28.6]} 17... c4 {[%clk 0:02:04.9]} 18.
bxc4 {[%clk 0:02:29.5]} 18... Bxc4 {[%clk 0:02:04.2]} 19. Nf3 {[%clk 0:02:30]}
1-0

[Event "Late-Titled-Tuesday-Blitz-February-27-2024"]
[Site "Chess.com"]
[Date "2024.02.27"]
[Round "1"]
[White "Romadk"]
[Black "temus_galaktionov"]
[Result "0-1"]
[WhiteElo "2488"]
[BlackElo "2909"]
[TimeControl "180+1"]
[EndTime "14:02:35 PST"]
[Termination "temus_galaktionov won by resignation"]

1. d4 {[%clk 0:03:00.9]} 1... c6 {[%clk 0:02:55.8]} 2. Nf3 {[%clk 0:02:59.7]}
2... g6 {[%clk 0:02:56.7]} 3. e4 {[%clk 0:02:58.4]} 3... d6 {[%clk 0:02:56.5]}
4. Bc4 {[%clk 0:02:57.2]} 4... Bg7 {[%clk 0:02:54]} 5. c3 {[%clk 0:02:56.9]}
5... Nd7 {[%clk 0:02:53.1]} 6. Qe2 {[%clk 0:02:35]} 6... e5 {[%clk 0:02:51.6]}
7. Ng5 {[%clk 0:02:16.2]} 7... Nh6 {[%clk 0:02:47.4]} 8. O-O {[%clk 0:02:12.6]}
8... O-O {[%clk 0:02:45.2]} 9. Be3 {[%clk 0:02:05.3]} 9... Qe7 {[%clk
0:02:42.6]} 10. Qd2 {[%clk 0:02:00.6]} 10... Ng4 {[%clk 0:02:37]} 11. dxe5
{[%clk 0:01:49.8]} 11... dxe5 {[%clk 0:02:34.9]} 12. Nf3 {[%clk 0:01:43.5]}
12... Nxe3 {[%clk 0:02:34.8]} 13. Qxe3 {[%clk 0:01:44.4]} 13... Qc5 {[%clk
0:02:34.7]} 14. Re1 {[%clk 0:01:36.3]} 14... Qxc4 {[%clk 0:02:33.2]} 0-1

[Event "Late-Titled-Tuesday-Blitz-February-27-2024"]
[Site "Chess.com"]
[Date "2024.02.27"]
[Round "1"]
[White "miraitrunks"]
[Black "djano"]
[Result "0-1"]
[WhiteElo "2216"]
[BlackElo "2584"]
[TimeControl "180+1"]
[EndTime "14:02:40 PST"]
[Termination "djano won by checkmate"]

1. d4 {[%clk 0:03:00.9]} 1... Nf6 {[%clk 0:02:57.3]} 2. c4 {[%clk 0:03:01.1]}
2... g6 {[%clk 0:02:57.7]} 3. Nc3 {[%clk 0:03:00.8]} 3... Bg7 {[%clk 0:02:55.4]}
4. e4 {[%clk 0:03:00.2]} 4... d6 {[%clk 0:02:56.3]} 5. Be3 {[%clk 0:02:57.3]}
5... O-O {[%clk 0:02:55.9]} 6. Be2 {[%clk 0:02:57.5]} 6... e5 {[%clk 0:02:52.3]}
7. d5 {[%clk 0:02:56.6]} 7... a5 {[%clk 0:02:51.1]} 8. g4 {[%clk 0:02:56.2]}
8... Na6 {[%clk 0:02:46.9]} 9. h4 {[%clk 0:02:55.9]} 9... Nc5 {[%clk 0:02:47.2]}
10. f3 {[%clk 0:02:48.4]} 10... h5 {[%clk 0:02:46.9]} 11. gxh5 {[%clk
0:02:35.8]} 11... Nxh5 {[%clk 0:02:47.8]} 12. Kf2 {[%clk 0:02:31.7]} 12... f5
{[%clk 0:02:45.2]} 13. Bg5 {[%clk 0:02:24.8]} 13... Bf6 {[%clk 0:02:42.4]} 14.
Bh6 {[%clk 0:02:12.6]} 14... Bxh4+ {[%clk 0:02:38.1]} 15. Kg2 {[%clk 0:02:12.8]}
15... Rf7 {[%clk 0:02:20.5]} 16. a3 {[%clk 0:01:52.8]} 16... fxe4 {[%clk
0:02:15.1]} 17. fxe4 {[%clk 0:01:53.7]} 17... Rf2# {[%clk 0:02:13.2]} 0-1

[Event "Late-Titled-Tuesday-Blitz-February-27-2024"]
[Site "Chess.com"]
[Date "2024.02.27"]
[Round "1"]
[White "MrKGG1"]
[Black "DraningWaterHi"]
[Result "1-0"]
[WhiteElo "2584"]
[BlackElo "2216"]
[TimeControl "180+1"]
[EndTime "14:03:02 PST"]
[Termination "MrKGG1 won by checkmate"]

1. e4 {[%clk 0:03:00.9]} 1... c5 {[%clk 0:02:56.2]} 2. Nc3 {[%clk 0:03:00.4]}
2... Nc6 {[%clk 0:02:54.8]} 3. g3 {[%clk 0:02:58.8]} 3... Nf6 {[%clk 0:02:51.2]}
4. Bg2 {[%clk 0:02:57.1]} 4... a6 {[%clk 0:02:47.8]} 5. Nge2 {[%clk 0:02:54.2]}
5... b5 {[%clk 0:02:43.3]} 6. O-O {[%clk 0:02:41.9]} 6... Qb6 {[%clk 0:02:32]}
7. Nd5 {[%clk 0:02:34.5]} 7... Nxd5 {[%clk 0:02:30.5]} 8. exd5 {[%clk
0:02:35.4]} 8... Nd8 {[%clk 0:02:29.4]} 9. d4 {[%clk 0:02:32.4]} 9... cxd4
{[%clk 0:02:28.7]} 10. Nxd4 {[%clk 0:02:32.6]} 10... d6 {[%clk 0:02:28.2]} 11.
Re1 {[%clk 0:02:29.4]} 11... Bb7 {[%clk 0:02:27.3]} 12. Bg5 {[%clk 0:02:22.3]}
12... h6 {[%clk 0:02:26]} 13. Bxe7 {[%clk 0:02:17.5]} 13... Bxe7 {[%clk
0:02:24.7]} 14. Nf5 {[%clk 0:02:17.7]} 14... O-O {[%clk 0:02:24.1]} 15. Rxe7
{[%clk 0:02:11.7]} 15... Ra7 {[%clk 0:02:11]} 16. Qg4 {[%clk 0:02:08.7]} 16...
g6 {[%clk 0:02:09.5]} 17. Nxh6+ {[%clk 0:02:01.9]} 17... Kh7 {[%clk 0:02:09.4]}
18. Qh4 {[%clk 0:01:53]} 18... Kg7 {[%clk 0:02:08.2]} 19. Ng4 {[%clk 0:01:50.3]}
19... Rh8 {[%clk 0:02:03.8]} 20. Qf6+ {[%clk 0:01:47.9]} 20... Kh7 {[%clk
0:02:04.3]} 21. Rxf7+ {[%clk 0:01:47]} 21... Nxf7 {[%clk 0:02:04.6]} 22. Qxf7#
{[%clk 0:01:47.9]} 1-0

[Event "Late-Titled-Tuesday-Blitz-February-27-2024"]
[Site "Chess.com"]
[Date "2024.02.27"]
[Round "1"]
[White "Machidon"]
[Black "Sanan_Sjugirov"]
[Result "0-1"]
[WhiteElo "2505"]
[BlackElo "2970"]
[TimeControl "180+1"]
[EndTime "14:03:11 PST"]
[Termination "Sanan_Sjugirov won by resignation"]

1. d4 {[%clk 0:02:59]} 1... Nf6 {[%clk 0:02:59.7]} 2. c4 {[%clk 0:02:58.3]} 2...
e6 {[%clk 0:03:00.4]} 3. Nf3 {[%clk 0:02:58.1]} 3... d5 {[%clk 0:03:00.6]} 4.
Nc3 {[%clk 0:02:57.6]} 4... c6 {[%clk 0:03:01.1]} 5. Bg5 {[%clk 0:02:56.1]} 5...
h6 {[%clk 0:03:00]} 6. Bxf6 {[%clk 0:02:54.7]} 6... Qxf6 {[%clk 0:03:00.9]} 7.
e3 {[%clk 0:02:54.5]} 7... Nd7 {[%clk 0:02:59.7]} 8. Qc2 {[%clk 0:02:54.3]} 8...
g6 {[%clk 0:02:54.1]} 9. Be2 {[%clk 0:02:50.6]} 9... Bg7 {[%clk 0:02:54]} 10.
O-O {[%clk 0:02:50.7]} 10... O-O {[%clk 0:02:53.9]} 11. b4 {[%clk 0:02:42.9]}
11... dxc4 {[%clk 0:02:53]} 12. Bxc4 {[%clk 0:02:39.2]} 12... Qe7 {[%clk
0:02:52.7]} 13. Rab1 {[%clk 0:02:37.5]} 13... a6 {[%clk 0:02:52.2]} 14. Ne4
{[%clk 0:02:35.2]} 14... Kh8 {[%clk 0:02:48.4]} 15. Nc5 {[%clk 0:02:34.3]} 15...
Nb6 {[%clk 0:02:46.3]} 16. Bb3 {[%clk 0:02:30.8]} 16... Nd5 {[%clk 0:02:35.2]}
17. a3 {[%clk 0:02:29.9]} 17... a5 {[%clk 0:02:33.6]} 18. b5 {[%clk 0:02:28.2]}
18... b6 {[%clk 0:02:24.7]} 19. Na4 {[%clk 0:02:27.7]} 19... cxb5 {[%clk
0:02:13.4]} 20. Bxd5 {[%clk 0:02:27.5]} 20... exd5 {[%clk 0:02:14.3]} 21. Nxb6
{[%clk 0:02:24.7]} 21... Bf5 {[%clk 0:02:14.8]} 22. Nxd5 {[%clk 0:02:18]} 22...
Bxc2 {[%clk 0:02:09.6]} 23. Nxe7 {[%clk 0:02:16.2]} 23... Bxb1 {[%clk
0:02:10.1]} 24. Rxb1 {[%clk 0:02:17.1]} 24... b4 {[%clk 0:02:07.4]} 25. Kf1
{[%clk 0:02:07.1]} 25... bxa3 {[%clk 0:02:04.2]} 26. Ra1 {[%clk 0:02:05.7]}
26... Rfb8 {[%clk 0:02:04]} 27. Rxa3 {[%clk 0:02:03.8]} 27... Bf8 {[%clk
0:02:03.7]} 0-1

[Event "Late-Titled-Tuesday-Blitz-February-27-2024"]
[Site "Chess.com"]
[Date "2024.02.27"]
[Round "1"]
[White "KChor05"]
[Black "Boninknights"]
[Result "0-1"]
[WhiteElo "2642"]
[BlackElo "2385"]
[TimeControl "180+1"]
[EndTime "14:03:11 PST"]
[Termination "Boninknights won by resignation"]

1. d4 {[%clk 0:02:59.8]} 1... Nf6 {[%clk 0:02:59.4]} 2. c4 {[%clk 0:02:59.8]}
2... e6 {[%clk 0:02:58.2]} 3. g3 {[%clk 0:03:00.2]} 3... c5 {[%clk 0:02:56.7]}
4. d5 {[%clk 0:02:52.5]} 4... exd5 {[%clk 0:02:56.4]} 5. cxd5 {[%clk 0:02:53.4]}
5... d6 {[%clk 0:02:56.4]} 6. Bg2 {[%clk 0:02:52.8]} 6... g6 {[%clk 0:02:55.8]}
7. Nf3 {[%clk 0:02:51.3]} 7... Bg7 {[%clk 0:02:55.5]} 8. O-O {[%clk 0:02:51.1]}
8... O-O {[%clk 0:02:55.1]} 9. Nc3 {[%clk 0:02:51.2]} 9... Re8 {[%clk
0:02:53.9]} 10. Nd2 {[%clk 0:02:46]} 10... b6 {[%clk 0:02:47.9]} 11. a4 {[%clk
0:02:33]} 11... Ba6 {[%clk 0:02:39.9]} 12. Re1 {[%clk 0:02:32.9]} 12... Nbd7
{[%clk 0:02:37]} 13. Qc2 {[%clk 0:02:31.8]} 13... Ne5 {[%clk 0:02:28.7]} 14. b3
{[%clk 0:02:27.9]} 14... Nd3 {[%clk 0:02:22.8]} 15. Rd1 {[%clk 0:02:20.3]} 15...
Nxf2 {[%clk 0:02:17.9]} 16. Kxf2 {[%clk 0:02:12.1]} 16... Ng4+ {[%clk
0:02:16.7]} 17. Kf3 {[%clk 0:01:55.6]} 17... Nxh2+ {[%clk 0:02:11.4]} 18. Kf2
{[%clk 0:01:48.7]} 18... Ng4+ {[%clk 0:02:07.9]} 19. Kf3 {[%clk 0:01:47.5]}
19... Ne3 {[%clk 0:02:06.1]} 0-1

[Event "Late-Titled-Tuesday-Blitz-February-27-2024"]
[Site "Chess.com"]
[Date "2024.02.27"]
[Round "1"]
[White "Nemsko"]
[Black "mac0504"]
[Result "0-1"]
[WhiteElo "2400"]
[BlackElo "2703"]
[TimeControl "180+1"]
[EndTime "14:03:16 PST"]
[Termination "mac0504 won by resignation"]

1. e4 {[%clk 0:02:32.6]} 1... Nc6 {[%clk 0:02:58.8]} 2. d4 {[%clk 0:02:30.4]}
2... d5 {[%clk 0:02:57.2]} 3. e5 {[%clk 0:02:30.7]} 3... Bf5 {[%clk 0:02:57.1]}
4. g4 {[%clk 0:02:29.7]} 4... Be4 {[%clk 0:02:56.4]} 5. f3 {[%clk 0:02:29.7]}
5... Bg6 {[%clk 0:02:56.5]} 6. h4 {[%clk 0:02:30.4]} 6... h5 {[%clk 0:02:56.7]}
7. g5 {[%clk 0:02:30.6]} 7... e6 {[%clk 0:02:56.5]} 8. c3 {[%clk 0:02:30.4]}
8... Nge7 {[%clk 0:02:56.8]} 9. Bd3 {[%clk 0:02:30.8]} 9... Bxd3 {[%clk
0:02:56.6]} 10. Qxd3 {[%clk 0:02:31.7]} 10... Nf5 {[%clk 0:02:57.4]} 11. f4
{[%clk 0:02:31.9]} 11... Qd7 {[%clk 0:02:56.9]} 12. Nf3 {[%clk 0:02:32.2]} 12...
g6 {[%clk 0:02:57.1]} 13. Nbd2 {[%clk 0:02:32.8]} 13... Be7 {[%clk 0:02:54.2]}
14. Nb3 {[%clk 0:02:33]} 14... O-O {[%clk 0:02:54.6]} 15. Be3 {[%clk 0:02:33.3]}
15... b6 {[%clk 0:02:55.1]} 16. O-O-O {[%clk 0:02:27.2]} 16... a5 {[%clk
0:02:54.6]} 17. Kb1 {[%clk 0:02:27.3]} 17... a4 {[%clk 0:02:53.9]} 18. Nbd2
{[%clk 0:02:27.9]} 18... Na5 {[%clk 0:02:53.9]} 19. Rdg1 {[%clk 0:02:25.6]}
19... c5 {[%clk 0:02:53.4]} 20. Nf1 {[%clk 0:02:25.6]} 20... c4 {[%clk
0:02:46.6]} 21. Qd2 {[%clk 0:02:25.1]} 21... a3 {[%clk 0:02:47.3]} 22. Ng3
{[%clk 0:02:23.7]} 22... Nxg3 {[%clk 0:02:44.6]} 23. Rxg3 {[%clk 0:02:24.6]}
23... axb2 {[%clk 0:02:45.2]} 24. Qxb2 {[%clk 0:02:25.5]} 24... b5 {[%clk
0:02:40.4]} 25. Bd2 {[%clk 0:02:24.6]} 25... Rfb8 {[%clk 0:02:38.2]} 26. a3
{[%clk 0:02:24.2]} 26... Nb3 {[%clk 0:02:37.9]} 27. Kc2 {[%clk 0:02:20.6]} 27...
Bxa3 {[%clk 0:02:37]} 28. Qb1 {[%clk 0:02:19.1]} 28... b4 {[%clk 0:02:33.1]} 29.
cxb4 {[%clk 0:02:18.8]} 29... Qa4 {[%clk 0:02:33.1]} 30. Kd1 {[%clk 0:02:17]}
0-1

[Event "Late-Titled-Tuesday-Blitz-February-27-2024"]
[Site "Chess.com"]
[Date "2024.02.27"]
[Round "1"]
[White "Njal28"]
[Black "MFatigue"]
[Result "1-0"]
[WhiteElo "3023"]
[BlackElo "2513"]
[TimeControl "180+1"]
[EndTime "14:03:19 PST"]
[Termination "Njal28 won by resignation"]

1. d4 {[%clk 0:03:00.9]} 1... d5 {[%clk 0:02:59.5]} 2. c4 {[%clk 0:03:01.1]}
2... c6 {[%clk 0:02:59.6]} 3. Nf3 {[%clk 0:03:01.5]} 3... Nf6 {[%clk 0:02:59.6]}
4. Nc3 {[%clk 0:03:02]} 4... dxc4 {[%clk 0:02:59.6]} 5. e4 {[%clk 0:03:01]} 5...
b5 {[%clk 0:02:56.6]} 6. Be2 {[%clk 0:03:01.2]} 6... e6 {[%clk 0:02:52.8]} 7.
O-O {[%clk 0:02:58.7]} 7... Be7 {[%clk 0:02:52.5]} 8. b3 {[%clk 0:02:54.1]} 8...
cxb3 {[%clk 0:02:51.9]} 9. Qxb3 {[%clk 0:02:55]} 9... a6 {[%clk 0:02:51.5]} 10.
e5 {[%clk 0:02:50.9]} 10... Nd5 {[%clk 0:02:51.2]} 11. Ne4 {[%clk 0:02:51.8]}
11... O-O {[%clk 0:02:49.9]} 12. Bg5 {[%clk 0:02:46.2]} 12... f6 {[%clk
0:02:37.6]} 13. exf6 {[%clk 0:02:45.9]} 13... gxf6 {[%clk 0:02:38.5]} 14. Bh6
{[%clk 0:02:46.2]} 14... Rf7 {[%clk 0:02:36]} 15. Nfd2 {[%clk 0:02:22.3]} 15...
Nd7 {[%clk 0:02:17.7]} 16. Bh5 {[%clk 0:02:16.9]} 16... Rg7 {[%clk 0:02:02.4]}
17. Bxg7 {[%clk 0:02:13.2]} 17... Kxg7 {[%clk 0:02:03.3]} 18. Rfe1 {[%clk
0:02:06.8]} 18... N7b6 {[%clk 0:01:58.4]} 19. Qg3+ {[%clk 0:02:00.2]} 19... Kh8
{[%clk 0:01:57.9]} 20. Nb3 {[%clk 0:01:58.5]} 20... Na4 {[%clk 0:01:47.9]} 21.
Nbc5 {[%clk 0:01:49.3]} 21... Nxc5 {[%clk 0:01:47.9]} 22. dxc5 {[%clk
0:01:49.3]} 22... Bxc5 {[%clk 0:01:48.5]} 23. Nxc5 {[%clk 0:01:49.2]} 1-0

[Event "Late-Titled-Tuesday-Blitz-February-27-2024"]
[Site "Chess.com"]
[Date "2024.02.27"]
[Round "1"]
[White "jefferyx"]
[Black "ybothg"]
[Result "1-0"]
[WhiteElo "3074"]
[BlackElo "2521"]
[TimeControl "180+1"]
[EndTime "14:03:34 PST"]
[Termination "jefferyx won by resignation"]

1. d4 {[%clk 0:03:00.9]} 1... Nf6 {[%clk 0:02:59.6]} 2. c4 {[%clk 0:03:01.1]}
2... g6 {[%clk 0:03:00.1]} 3. Nc3 {[%clk 0:02:59.2]} 3... d5 {[%clk 0:03:00.4]}
4. Nf3 {[%clk 0:02:56.1]} 4... Bg7 {[%clk 0:03:00.4]} 5. Bf4 {[%clk 0:02:56.3]}
5... O-O {[%clk 0:02:59.7]} 6. Rc1 {[%clk 0:02:56.5]} 6... c5 {[%clk 0:02:43.5]}
7. dxc5 {[%clk 0:02:56]} 7... Be6 {[%clk 0:02:42.7]} 8. e3 {[%clk 0:02:32.5]}
8... Nc6 {[%clk 0:02:33.8]} 9. Ng5 {[%clk 0:02:31.8]} 9... Qa5 {[%clk
0:02:22.8]} 10. Be2 {[%clk 0:02:18.1]} 10... Rad8 {[%clk 0:01:49.7]} 11. Nxe6
{[%clk 0:02:11.4]} 11... fxe6 {[%clk 0:01:49.7]} 12. O-O {[%clk 0:02:11.7]}
12... e5 {[%clk 0:01:34.5]} 13. Bg3 {[%clk 0:02:08.6]} 13... d4 {[%clk 0:01:35]}
14. Nd5 {[%clk 0:02:09]} 14... Qxc5 {[%clk 0:01:32.2]} 15. exd4 {[%clk
0:02:03.8]} 15... exd4 {[%clk 0:01:29.3]} 16. Bf3 {[%clk 0:01:59.7]} 16... Nxd5
{[%clk 0:01:11.9]} 17. cxd5 {[%clk 0:01:58.7]} 1-0

[Event "Late-Titled-Tuesday-Blitz-February-27-2024"]
[Site "Chess.com"]
[Date "2024.02.27"]
[Round "1"]
[White "QuintilianoR"]
[Black "Joachim100x"]
[Result "1-0"]
[WhiteElo "2767"]
[BlackElo "2432"]
[TimeControl "180+1"]
[EndTime "14:04:10 PST"]
[Termination "QuintilianoR won by resignation"]

1. d4 {[%clk 0:02:59]} 1... d5 {[%clk 0:02:59.5]} 2. Nf3 {[%clk 0:02:58.9]} 2...
e6 {[%clk 0:02:59.5]} 3. Bf4 {[%clk 0:02:58.9]} 3... Nf6 {[%clk 0:03:00.1]} 4.
e3 {[%clk 0:02:59.1]} 4... Bd6 {[%clk 0:03:00.8]} 5. Nbd2 {[%clk 0:02:59]} 5...
O-O {[%clk 0:03:00.4]} 6. Bd3 {[%clk 0:02:58.6]} 6... c5 {[%clk 0:03:00.4]} 7.
c3 {[%clk 0:02:58.8]} 7... Nc6 {[%clk 0:03:00.6]} 8. O-O {[%clk 0:02:58.8]} 8...
b6 {[%clk 0:02:59.5]} 9. Qe2 {[%clk 0:02:58.6]} 9... Bb7 {[%clk 0:02:59.8]} 10.
Rad1 {[%clk 0:02:57.5]} 10... Bxf4 {[%clk 0:02:51.6]} 11. exf4 {[%clk
0:02:57.1]} 11... cxd4 {[%clk 0:02:52]} 12. Nxd4 {[%clk 0:02:57.1]} 12... Nxd4
{[%clk 0:02:50.5]} 13. cxd4 {[%clk 0:02:58]} 13... Qd6 {[%clk 0:02:50.9]} 14. g3
{[%clk 0:02:57.1]} 14... Rac8 {[%clk 0:02:51]} 15. a3 {[%clk 0:02:55.8]} 15...
a5 {[%clk 0:02:49.4]} 16. Rc1 {[%clk 0:02:54.7]} 16... Rxc1 {[%clk 0:02:44.5]}
17. Rxc1 {[%clk 0:02:54.3]} 17... Rc8 {[%clk 0:02:45.4]} 18. Rxc8+ {[%clk
0:02:53.5]} 18... Bxc8 {[%clk 0:02:45.7]} 19. Nf3 {[%clk 0:02:54]} 19... Bb7
{[%clk 0:02:44.6]} 20. Qc2 {[%clk 0:02:49.6]} 20... g6 {[%clk 0:02:42.5]} 21.
Ne5 {[%clk 0:02:47.2]} 21... Nd7 {[%clk 0:02:37.7]} 22. Bb5 {[%clk 0:02:46.6]}
22... Nxe5 {[%clk 0:02:32.1]} 23. fxe5 {[%clk 0:02:47.5]} 23... Qd8 {[%clk
0:02:32.4]} 24. h4 {[%clk 0:02:46.4]} 24... Qc8 {[%clk 0:02:30]} 25. Qd2 {[%clk
0:02:42.7]} 25... Qd8 {[%clk 0:02:26.3]} 26. Kg2 {[%clk 0:02:37.5]} 26... Qc8
{[%clk 0:02:05.7]} 27. h5 {[%clk 0:02:35.2]} 27... Qd8 {[%clk 0:01:58.9]} 28. h6
{[%clk 0:02:34.3]} 28... Kf8 {[%clk 0:01:57.5]} 29. Qf4 {[%clk 0:02:33.4]} 29...
f5 {[%clk 0:01:27.4]} 30. exf6 {[%clk 0:02:32.7]} 30... Kf7 {[%clk 0:01:27.6]}
31. Qe5 {[%clk 0:02:31.1]} 31... Qxf6 {[%clk 0:01:27.3]} 32. Qc7+ {[%clk
0:02:30.8]} 32... Qe7 {[%clk 0:01:27]} 33. Qxb6 {[%clk 0:02:30.9]} 33... e5
{[%clk 0:01:23.3]} 34. Bc6 {[%clk 0:02:30.6]} 34... Bxc6 {[%clk 0:01:16]} 35.
Qxc6 {[%clk 0:02:31.5]} 35... exd4 {[%clk 0:01:15.5]} 36. Qxd5+ {[%clk
0:02:31.2]} 36... Kf8 {[%clk 0:01:08]} 37. Qxd4 {[%clk 0:02:28.8]} 37... Qb7+
{[%clk 0:01:08]} 38. Kg1 {[%clk 0:02:25.2]} 1-0

[Event "Late-Titled-Tuesday-Blitz-February-27-2024"]
[Site "Chess.com"]
[Date "2024.02.27"]
[Round "1"]
[White "GMVignirVatnar"]
[Black "PapaieDudu"]
[Result "1-0"]
[WhiteElo "2710"]
[BlackElo "2406"]
[TimeControl "180+1"]
[EndTime "14:04:17 PST"]
[Termination "GMVignirVatnar won by resignation"]

1. d4 {[%clk 0:03:00.9]} 1... d5 {[%clk 0:03:00.4]} 2. c4 {[%clk 0:03:01.1]}
2... e6 {[%clk 0:03:01]} 3. g3 {[%clk 0:03:01.1]} 3... Nf6 {[%clk 0:03:00.8]} 4.
Bg2 {[%clk 0:03:01]} 4... Be7 {[%clk 0:03:01.5]} 5. Nf3 {[%clk 0:03:00.3]} 5...
O-O {[%clk 0:03:02.1]} 6. O-O {[%clk 0:03:01]} 6... a6 {[%clk 0:03:01.7]} 7.
Nbd2 {[%clk 0:02:56.9]} 7... dxc4 {[%clk 0:03:00.8]} 8. Nxc4 {[%clk 0:02:56.4]}
8... b5 {[%clk 0:03:01.5]} 9. Nfe5 {[%clk 0:02:54.1]} 9... c6 {[%clk 0:02:56.1]}
10. Nxc6 {[%clk 0:02:48.4]} 10... Nxc6 {[%clk 0:02:56.4]} 11. Bxc6 {[%clk
0:02:49.3]} 11... Rb8 {[%clk 0:02:57.1]} 12. Ne5 {[%clk 0:02:46.3]} 12... Nd5
{[%clk 0:02:54.5]} 13. Qb3 {[%clk 0:02:14.9]} 13... f6 {[%clk 0:02:48.7]} 14.
Bxd5 {[%clk 0:02:14.8]} 14... fxe5 {[%clk 0:02:44.7]} 15. Bxe6+ {[%clk
0:02:14.6]} 15... Kh8 {[%clk 0:02:45.3]} 16. Bxc8 {[%clk 0:02:13.4]} 16... Qxc8
{[%clk 0:02:45.6]} 17. dxe5 {[%clk 0:02:12.4]} 17... Bc5 {[%clk 0:02:43.9]} 18.
Be3 {[%clk 0:02:07.5]} 18... Bxe3 {[%clk 0:02:42.5]} 19. Qxe3 {[%clk 0:02:08.4]}
19... Qc2 {[%clk 0:02:41.4]} 20. Qb3 {[%clk 0:01:55.4]} 20... Qxe2 {[%clk
0:02:39.7]} 21. Rae1 {[%clk 0:01:55.9]} 21... Qc4 {[%clk 0:02:33.4]} 22. e6
{[%clk 0:01:54.4]} 22... Rfe8 {[%clk 0:02:32.5]} 23. Re3 {[%clk 0:01:53.2]}
23... Rb6 {[%clk 0:02:28.9]} 24. Rfe1 {[%clk 0:01:51.6]} 24... Qxb3 {[%clk
0:02:09.4]} 25. axb3 {[%clk 0:01:51.3]} 25... Kg8 {[%clk 0:02:10.2]} 26. f4
{[%clk 0:01:49.6]} 26... Kf8 {[%clk 0:02:06.6]} 27. e7+ {[%clk 0:01:48.9]} 27...
Kf7 {[%clk 0:02:06.2]} 28. Kf2 {[%clk 0:01:49.6]} 28... Rb7 {[%clk 0:02:06.3]}
29. Kf3 {[%clk 0:01:50]} 29... Rbxe7 {[%clk 0:02:05.7]} 30. Rxe7+ {[%clk
0:01:50]} 30... Rxe7 {[%clk 0:02:06.3]} 31. Rxe7+ {[%clk 0:01:50.6]} 31... Kxe7
{[%clk 0:02:06.8]} 32. Ke4 {[%clk 0:01:51.3]} 32... Ke6 {[%clk 0:02:04]} 33. g4
{[%clk 0:01:49.8]} 33... g6 {[%clk 0:02:03.1]} 34. b4 {[%clk 0:01:49.2]} 34...
h6 {[%clk 0:02:02.2]} 35. f5+ {[%clk 0:01:48.7]} 35... Kf6 {[%clk 0:02:01.4]}
36. Kf4 {[%clk 0:01:46.6]} 36... gxf5 {[%clk 0:01:59.9]} 37. gxf5 {[%clk
0:01:46.3]} 37... Kg7 {[%clk 0:01:58.8]} 38. Ke5 {[%clk 0:01:46.2]} 38... Kf7
{[%clk 0:01:58.7]} 39. f6 {[%clk 0:01:44.6]} 39... h5 {[%clk 0:01:56.5]} 40. Kf5
{[%clk 0:01:43.8]} 40... h4 {[%clk 0:01:56.7]} 41. h3 {[%clk 0:01:43.4]} 41...
Kg8 {[%clk 0:01:56.4]} 42. Kg6 {[%clk 0:01:43.1]} 42... Kf8 {[%clk 0:01:56.6]}
43. f7 {[%clk 0:01:43.2]} 1-0